fUSD/lending_fUSD_20241111
["ID","MTS","AMOUNT","RATE_DAILY","PERIOD"]
[341935114,1731312653207,-535.58,0.00014799,2]
[341935115,1731312653217,-535.74,0.00014799,2]
[341935116,1731312653226,-151.0,0.00014799,2]
[341935117,1731312653235,-151.0,0.00014799,2]
[341935118,1731312653244,-151.0,0.00014799,2]
[341935119,1731312653254,-151.0,0.00014799,2]
[341935120,1731312653263,-151.0,0.00014799,2]
[341935121,1731312653272,-500.0,0.00014799,2]
[341935122,1731312653281,-500.0,0.00014799,2]
[341935123,1731312653291,-500.0,0.00014799,2]
[341935124,1731312653300,-500.0,0.00014799,2]
[341935125,1731312653309,-500.0,0.00014799,2]
[341935126,1731312653318,-500.0,0.00014799,2]
[341935127,1731312653327,-500.0,0.00014799,2]
[341935128,1731312653336,-500.0,0.00014799,2]
[341935129,1731312653345,-500.0,0.00014799,2]
[341935130,1731312653354,-500.0,0.00014799,2]
[341935131,1731312653364,-500.0,0.00014799,2]
[341935132,1731312653373,-500.0,0.00014799,2]
[341935133,1731312653383,-500.0,0.00014799,2]
[341935134,1731312653393,-105.7827752,0.00014799,2]
[341935135,1731312653563,-151.0,0.00014796,2]
[341935136,1731312653573,-245.97092373,0.00014797,2]
[341935137,1731312653591,-200.0,0.00014696,2]
[341935138,1731312653601,-254.02907627,0.00014797,2]
[341935139,1731312653611,-227.30067399,0.00014798,2]
[341935140,1731312653620,-171.4972248,0.00014799,2]
[341935141,1731312653629,-500.0,0.00014799,2]
[341935142,1731312653639,-500.0,0.00014799,2]
[341935143,1731312653648,-500.0,0.00014799,2]
[341935144,1731312653657,-500.0,0.00014799,2]
[341935145,1731312653666,-568.02,0.00014799,2]
[341935146,1731312653676,-197.69,0.00014799,2]
[341935147,1731312653685,-500.0,0.00014799,2]
[341935148,1731312653694,-500.0,0.00014799,2]
[341935149,1731312653705,-500.0,0.00014799,2]
[341935150,1731312653715,-500.0,0.00014799,2]
[341935151,1731312653724,-500.0,0.00014799,2]
[341935152,1731312653734,-500.0,0.00014799,2]
[341935153,1731312653743,-359.98176746,0.00014799,2]
[341935154,1731312653752,-500.0,0.00014799,2]
[341935155,1731312653761,-500.0,0.00014799,2]
[341935156,1731312653771,-500.0,0.00014799,2]
[341935157,1731312653781,-500.0,0.00014799,2]
[341935158,1731312653791,-500.0,0.00014799,2]
[341935159,1731312653801,-500.0,0.00014799,2]
[341935160,1731312653811,-500.0,0.00014799,2]
[341935161,1731312653820,-500.0,0.00014799,2]
[341935162,1731312653829,-384.84354253,0.00014799,2]
[341935163,1731312653839,-162.520225,0.00014799,2]
[341935164,1731312653848,-162.520225,0.00014799,2]
[341935165,1731312653858,-162.520225,0.00014799,2]
[341935166,1731312653867,-162.520225,0.00014799,2]
[341935167,1731312653877,-162.520225,0.00014799,2]
[341935168,1731312653891,-367.935328,0.00014799,2]
[341935169,1731312653900,-162.520225,0.00014799,2]
[341935170,1731312653909,-367.935328,0.00014799,2]
[341935171,1731312653918,-162.520225,0.00014799,2]
[341935172,1731312653929,-367.935328,0.00014799,2]
[341935173,1731312653938,-162.520225,0.00014799,2]
[341935174,1731312653948,-367.935328,0.00014799,2]
[341935175,1731312653958,-162.520225,0.00014799,2]
[341935176,1731312653968,-367.935328,0.00014799,2]
[341935177,1731312653977,-162.520234,0.00014799,2]
[341935178,1731312653986,-367.935328,0.00014799,2]
[341935179,1731312653995,-367.935328,0.00014799,2]
[341935180,1731312654004,-367.935328,0.00014799,2]
[341935181,1731312654014,-367.935328,0.00014799,2]
[341935182,1731312654169,-367.935325,0.00014799,2]
[341935183,1731312654180,-500.0,0.00014799,2]
[341935184,1731312654190,-500.0,0.00014799,2]
[341935185,1731312654202,-500.0,0.00014799,2]
[341935186,1731312654212,-500.0,0.00014799,2]
[341935187,1731312654222,-500.0,0.00014799,2]
[341935188,1731312654232,-500.0,0.00014799,2]
[341935189,1731312654241,-500.0,0.00014799,2]
[341935190,1731312654251,-500.0,0.00014799,2]
[341935191,1731312654261,-407.48301537,0.00014799,2]
[341935192,1731312654270,-2101.853419,0.00014799,2]
[341935193,1731312654279,-2101.853419,0.00014799,2]
[341935194,1731312654288,-2111.16,0.00014799,2]
[341935195,1731312654298,-2101.853419,0.00014799,2]
[341935196,1731312654307,-2111.16,0.00014799,2]
[341935197,1731312654317,-2101.853419,0.00014799,2]
[341935198,1731312654327,-2111.16,0.00014799,2]
[341935199,1731312654337,-2111.16,0.00014799,2]
[341935200,1731312654346,-2111.16,0.00014799,2]
[341935201,1731312654355,-2111.16,0.00014799,2]
[341935202,1731312654365,-2111.16,0.00014799,2]
[341935203,1731312654375,-2111.16,0.00014799,2]
[341935204,1731312654385,-2111.16,0.00014799,2]
[341935205,1731312654395,-2111.16,0.00014799,2]
[341935206,1731312654404,-2111.16,0.00014799,2]
[341935207,1731312654413,-2101.853419,0.00014799,2]
[341935208,1731312654423,-2101.853419,0.00014799,2]
[341935209,1731312654432,-2111.16,0.00014799,2]
[341935210,1731312654441,-2101.853419,0.00014799,2]
[341935211,1731312654451,-2111.16,0.00014799,2]
[341935212,1731312654460,-2101.853423,0.00014799,2]
[341935213,1731312654469,-2111.16,0.00014799,2]
[341935214,1731312654478,-1402.29462981,0.00014799,2]
[341935215,1731312654491,-708.86537019,0.00014799,2]
[341935216,1731312654500,-915.11716697,0.00014799,2]
[341935217,1731312654511,-604.0,0.00014799,2]
[341935218,1731312654522,-592.04283303,0.00014799,2]
[341935219,1731312654531,-2111.36029782,0.00014799,2]
[341935220,1731312654540,-21733.62967596,0.000148,2]
[341935221,1731312654551,-2001.3999998,0.000148,2]
[341935300,1731313107488,-152.0,0.00020865,30]
[341935301,1731313120917,-152.0,0.00020496,28]
[341935302,1731313120943,-152.0,0.0002068,29]
[341935306,1731313166565,-500.0,0.00025138,120]
[341935307,1731313166587,-2000.0,0.00025138,120]
[341935308,1731313201085,-2000.0,0.00026004,120]
[341935309,1731313201107,-500.0,0.00026363,120]
[341935310,1731313216372,5000.0,0.00024,60]
[341935312,1731313242048,150.0,0.00013,5]
[341935313,1731313250175,-2000.0,0.0002687,120]
[341935314,1731313265144,800.0,0.00026877,120]
[341935316,1731313321348,429.98,0.00011908,2]
[341935317,1731313330799,158.34939055,0.00014799,120]
[341935347,1731313740299,156.539,0.00011,2]
[341935369,1731313832166,-200.0,0.000137,2]
[341935370,1731313832175,-69.16354895,0.00013761,2]
[341935371,1731313832282,-180.83645105,0.00013761,2]
[341935372,1731313832292,-2185.2,0.00013768,2]
[341935373,1731313832301,-169.08,0.00013798,2]
[341935374,1731313832312,-293.62,0.00013805,2]
[341935375,1731313832322,-157.68,0.00013805,2]
[341935376,1731313832331,-1000.0,0.0001383,2]
[341935377,1731313832341,-429.98,0.00014172,2]
[341935378,1731313832350,-1007.0,0.000145,2]
[341935379,1731313832359,-1692.30848525,0.00014503,2]
[341935380,1731313832368,-1004.49666927,0.00014504,2]
[341935381,1731313832377,-1005.54430915,0.00014504,2]
[341935382,1731313832386,-150.0,0.000146,2]
[341935383,1731313832395,-150.0,0.000146,2]
[341935384,1731313832404,-6739.9015,0.00014695,2]
[341935385,1731313832413,-3409.3376,0.00014696,2]
[341935386,1731313832422,-200.0,0.00014696,2]
[341935387,1731313832431,-659.0352,0.00014696,2]
[341935388,1731313832440,-8819.8065,0.00014696,2]
[341935389,1731313832451,-348.654,0.00014699,2]
[341935390,1731313832460,-8424.3703,0.000147,2]
[341935392,1731313832470,-300.0,0.000147,2]
[341935394,1731313832479,-150.0,0.000147,2]
[341935396,1731313832488,-160.40072715,0.00014773,2]
[341935397,1731313832497,-161.61610565,0.00014773,2]
[341935398,1731313832506,-151.82696742,0.00014773,2]
[341935399,1731313832515,-501.84107083,0.00014773,2]
[341935400,1731313832524,-590.77,0.00014785,3]
[341935401,1731313832533,-2179.12215561,0.00014794,2]
[341935402,1731313832542,-500.0,0.00014794,2]
[341935403,1731313832552,-500.0,0.00014794,2]
[341935404,1731313832561,-500.0,0.00014794,2]
[341935405,1731313832570,-500.0,0.00014794,2]
[341935406,1731313832579,-500.0,0.00014794,2]
[341935407,1731313832588,-500.97,0.00014794,2]
[341935408,1731313832598,-500.0,0.00014794,2]
[341935409,1731313832607,-500.0,0.00014794,2]
[341935410,1731313832616,-500.0,0.00014794,2]
[341935411,1731313832625,-500.0,0.00014794,2]
[341935412,1731313832635,-500.0,0.00014794,2]
[341935413,1731313832644,-500.0,0.00014794,2]
[341935414,1731313832654,-500.0,0.00014794,2]
[341935415,1731313832663,-500.0,0.00014794,2]
[341935416,1731313832673,-539.35,0.00014794,2]
[341935417,1731313832682,-500.0,0.00014794,2]
[341935418,1731313832691,-500.0,0.00014794,2]
[341935419,1731313832703,-500.0,0.00014794,2]
[341935420,1731313832712,-500.0,0.00014794,2]
[341935421,1731313832722,-500.0,0.00014794,2]
[341935422,1731313832731,-500.0,0.00014794,2]
[341935423,1731313832740,-500.0,0.00014794,2]
[341935424,1731313832749,-500.0,0.00014794,2]
[341935425,1731313832759,-500.0,0.00014794,2]
[341935426,1731313832769,-500.0,0.00014794,2]
[341935427,1731313832778,-500.0,0.00014794,2]
[341935428,1731313832787,-500.0,0.00014794,2]
[341935429,1731313832797,-550.53,0.00014794,2]
[341935430,1731313832806,-500.0,0.00014794,2]
[341935431,1731313832815,-505.20025318,0.00014794,2]
[341935432,1731313832824,-500.0,0.00014794,2]
[341935433,1731313832834,-500.0,0.00014794,2]
[341935434,1731313832843,-500.0,0.00014794,2]
[341935435,1731313832852,-500.0,0.00014794,2]
[341935436,1731313832861,-500.0,0.00014794,2]
[341935437,1731313832870,-500.0,0.00014794,2]
[341935438,1731313832879,-500.0,0.00014794,2]
[341935439,1731313832888,-500.0,0.00014794,2]
[341935440,1731313832897,-500.0,0.00014794,2]
[341935441,1731313832906,-500.0,0.00014794,2]
[341935442,1731313832915,-481.52170463,0.00014795,2]
[341935443,1731313832934,-18.47829537,0.00014795,2]
[341935444,1731313832943,-500.0,0.00014795,2]
[341935445,1731313832957,-412.39866135,0.00014795,2]
[341935446,1731313832966,-500.0,0.00014795,2]
[341935447,1731313832975,-500.0,0.00014795,2]
[341935448,1731313832985,-510.915932,0.00014795,2]
[341935449,1731313832994,-322.36036034,0.00014795,2]
[341935452,1731313838219,-486.24081564,0.000147,2]
[341935453,1731313838229,-500.0,0.00014794,2]
[341935454,1731313838243,-431.90918436,0.00014794,2]
[341935455,1731313838255,-68.09081564,0.00014794,2]
[341935456,1731313838264,-177.63963966,0.00014795,2]
[341935457,1731313838274,-500.0,0.00014795,2]
[341935458,1731313838284,-500.0,0.00014795,2]
[341935459,1731313838293,-183.94976479,0.00014795,2]
[341935460,1731313838303,-500.56,0.00014795,2]
[341935461,1731313838315,-507.46,0.00014795,2]
[341935462,1731313838324,-0.42977991,0.00014795,2]
[341935463,1731313838357,-504.59678791,0.00014795,2]
[341935464,1731313838367,-385.27895007,0.00014795,2]
[341935465,1731313839952,-116.06938839,0.00014795,2]
[341935466,1731313839962,-503.178454,0.00014795,2]
[341935467,1731313839971,-342.02419575,0.00014795,2]
[341935468,1731313840050,-162.33343678,0.00014795,2]
[341935469,1731313840059,-501.47844241,0.00014795,2]
[341935470,1731313840068,-500.0,0.00014795,2]
[341935471,1731313840078,-500.0,0.00014795,2]
[341935472,1731313840087,-67.03408081,0.00014795,2]
[341935473,1731313840122,-194.09098986,0.00014795,2]
[341935474,1731313840131,-335.85901014,0.00014795,2]
[341935475,1731313840142,-166.96897726,0.00014795,2]
[341935476,1731313840151,-500.0,0.00014795,2]
[341935477,1731313840160,-501.06356202,0.00014795,2]
[341935478,1731313840169,-500.0,0.00014795,2]
[341935479,1731313840178,-503.33460506,0.00014795,2]
[341935480,1731313840188,-500.0,0.00014795,2]
[341935481,1731313840197,-500.0,0.00014795,2]
[341935482,1731313840208,-500.93492764,0.00014795,2]
[341935483,1731313840217,-500.64768268,0.00014795,2]
[341935484,1731313840226,-500.0,0.00014795,2]
[341935485,1731313840237,-520.67988104,0.00014795,2]
[341935487,1731313840246,-500.0,0.00014795,2]
[341935489,1731313840255,-403.25065655,0.00014795,2]
[341935490,1731313840266,-218.46515525,0.00014795,2]
[341935493,1731313840278,-281.53484475,0.00014795,2]
[341935494,1731313840287,-500.0,0.00014795,2]
[341935495,1731313840296,-218.46515525,0.00014795,2]
[341935497,1731313840308,-137.99009208,0.00014795,2]
[341935498,1731313840320,-506.33734877,0.00014795,2]
[341935499,1731313840329,-503.96596519,0.00014795,2]
[341935500,1731313840338,-500.0,0.00014795,2]
[341935501,1731313840347,-168.90096206,0.00014795,2]
[341935502,1731313840356,-518.74819785,0.00014795,2]
[341935503,1731313840365,-500.0,0.00014795,2]
[341935504,1731313840374,-500.0,0.00014795,2]
[341935505,1731313840382,-610.25972197,0.00014795,2]
[341935506,1731313840392,-500.83492402,0.00014795,2]
[341935507,1731313840401,-478.49125228,0.00014795,2]
[341935508,1731313840446,-22.23947196,0.00014795,2]
[341935509,1731313840456,-500.0,0.00014795,2]
[341935510,1731313840465,-503.54015255,0.00014795,2]
[341935511,1731313840474,-347.20037549,0.00014795,2]
[341935512,1731313840485,-158.69100137,0.00014795,2]
[341935513,1731313840495,-500.0,0.00014795,2]
[341935514,1731313840504,-500.0,0.00014795,2]
[341935515,1731313840513,-175.4,0.00014795,2]
[341935516,1731313840522,-526.76871679,0.00014795,2]
[341935517,1731313840532,-500.0,0.00014795,2]
[341935518,1731313840541,-503.44769442,0.00014795,2]
[341935519,1731313840550,-564.97933969,0.00014795,2]
[341935520,1731313840559,-524.27295363,0.00014795,2]
[341935521,1731313840568,-387.2343249,0.00014795,2]
[341935522,1731313840577,-150.0,0.00014795,2]
[341935523,1731313840587,-497.52756075,0.00014795,2]
[341935524,1731313840596,-500.0,0.00014795,2]
[341935525,1731313840606,-500.0,0.00014795,2]
[341935526,1731313840615,-175.66080659,0.00014795,2]
[341935527,1731313840623,-500.0,0.00014795,2]
[341935528,1731313840633,-500.0,0.00014795,2]
[341935529,1731313840642,-320.97309858,0.00014795,2]
[341935530,1731313840651,-500.0,0.00014795,2]
[341935531,1731313840661,-500.0,0.00014795,2]
[341935532,1731313840670,-500.0,0.00014795,2]
[341935533,1731313840679,-500.0,0.00014795,2]
[341935534,1731313840691,-500.0,0.00014795,2]
[341935535,1731313840700,-500.0,0.00014795,2]
[341935536,1731313840710,-500.0,0.00014795,2]
[341935537,1731313840719,-500.80178564,0.00014795,2]
[341935538,1731313840729,-500.0,0.00014795,2]
[341935539,1731313840738,-500.0,0.00014795,2]
[341935540,1731313840747,-546.77,0.00014795,2]
[341935541,1731313840756,-501.13698638,0.00014795,2]
[341935542,1731313840765,-500.0,0.00014795,2]
[341935543,1731313840776,-500.0,0.00014795,2]
[341935544,1731313840785,-500.0,0.00014795,2]
[341935545,1731313840794,-500.0,0.00014795,2]
[341935546,1731313840803,-635.47,0.00014795,2]
[341935547,1731313840813,-500.0,0.00014795,2]
[341935548,1731313840823,-540.73,0.00014795,2]
[341935549,1731313840832,-540.73,0.00014795,2]
[341935550,1731313840842,-540.73,0.00014795,2]
[341935551,1731313840851,-540.73,0.00014795,2]
[341935552,1731313840859,-358.45643181,0.00014795,2]
[341935553,1731313840869,-500.0,0.00014795,2]
[341935554,1731313840879,-500.0,0.00014795,2]
[341935555,1731313840888,-500.0,0.00014795,2]
[341935556,1731313840897,-515.27152304,0.00014795,2]
[341935557,1731313840906,-500.0,0.00014795,2]
[341935558,1731313840915,-581.00138119,0.00014795,2]
[341935559,1731313840924,-522.73594904,0.00014795,2]
[341935560,1731313840933,-526.74719713,0.00014795,2]
[341935561,1731313840942,-500.0,0.00014795,2]
[341935562,1731313840953,-508.51682793,0.00014795,2]
[341935563,1731313840963,-549.47204365,0.00014795,2]
[341935564,1731313840972,-500.0,0.00014795,2]
[341935565,1731313840981,-525.45804148,0.00014795,2]
[341935567,1731313840990,-500.0,0.00014795,2]
[341935569,1731313841000,-500.0,0.00014795,2]
[341935571,1731313841009,-500.0,0.00014795,2]
[341935573,1731313841018,-500.0,0.00014795,2]
[341935575,1731313841028,-500.0,0.00014795,2]
[341935577,1731313841037,-445.69540531,0.00014795,2]
[341935579,1731313841046,-500.0,0.00014795,2]
[341935581,1731313841055,-500.0,0.00014795,2]
[341935583,1731313841064,-500.0,0.00014795,2]
[341935585,1731313841074,-500.0,0.00014795,2]
[341935587,1731313841083,-528.24833199,0.00014795,2]
[341935589,1731313841092,-500.0,0.00014795,2]
[341935591,1731313841102,-500.0,0.00014795,2]
[341935593,1731313841111,-518.52,0.00014795,2]
[341935595,1731313841121,-500.0,0.00014795,2]
[341935597,1731313841130,-500.0,0.00014795,2]
[341935599,1731313841139,-536.16,0.00014795,2]
[341935601,1731313841149,-500.0,0.00014795,2]
[341935603,1731313841158,-500.0,0.00014795,2]
[341935605,1731313841167,-500.0,0.00014795,2]
[341935607,1731313841176,-530.61676042,0.00014795,2]
[341935609,1731313841185,-500.0,0.00014795,2]
[341935611,1731313841194,-500.0,0.00014795,2]
[341935613,1731313841206,-443.54,0.00014795,2]
[341935615,1731313841215,-500.0,0.00014795,2]
[341935617,1731313841225,-500.0,0.00014795,2]
[341935619,1731313841235,-500.0,0.00014795,2]
[341935621,1731313841248,-532.07564855,0.00014795,2]
[341935623,1731313841257,-500.0,0.00014795,2]
[341935625,1731313841266,-500.0,0.00014795,2]
[341935627,1731313841276,-288.79364904,0.00014795,2]
[341935629,1731313841286,-514.31560755,0.00014795,2]
[341935631,1731313841295,-505.08114314,0.00014795,2]
[341935633,1731313841304,-500.0,0.00014795,2]
[341935635,1731313841316,-500.0,0.00014795,2]
[341935637,1731313841326,-500.0,0.00014795,2]
[341935639,1731313841336,-336.86121566,0.00014795,2]
[341935641,1731313841345,-500.0,0.00014795,2]
[341935643,1731313841354,-500.0,0.00014795,2]
[341935645,1731313841363,-510.48,0.00014795,2]
[341935647,1731313841372,-500.0,0.00014795,2]
[341935649,1731313841381,-500.0,0.00014795,2]
[341935651,1731313841391,-500.0,0.00014795,2]
[341935653,1731313841400,-311.98,0.00014795,2]
[341935655,1731313841410,-472.61918431,0.00014795,2]
[341935657,1731313841419,-500.0,0.00014795,2]
[341935659,1731313841428,-500.0,0.00014795,2]
[341935661,1731313841437,-500.0,0.00014795,2]
[341935663,1731313841446,-500.0,0.00014795,2]
[341935665,1731313841458,-500.0,0.00014795,2]
[341935668,1731313841468,-500.0,0.00014795,2]
[341935670,1731313841477,-605.68740208,0.00014795,2]
[341935672,1731313841486,-602.31497819,0.00014795,2]
[341935674,1731313841500,-521.68911424,0.00014795,2]
[341935676,1731313841513,-500.0,0.00014795,2]
[341935679,1731313841525,-500.0,0.00014795,2]
[341935681,1731313841536,-491.08338893,0.00014795,2]
[341935683,1731313841546,-500.0,0.00014795,2]
[341935685,1731313841557,-500.0,0.00014795,2]
[341935687,1731313841568,-505.58089473,0.00014795,2]
[341935690,1731313841580,-257.18032574,0.00014795,2]
[341935692,1731313841591,-500.0,0.00014795,2]
[341935694,1731313841602,-527.05767128,0.00014795,2]
[341935696,1731313841614,-500.0,0.00014795,2]
[341935698,1731313841625,-500.0,0.00014795,2]
[341935701,1731313841637,-500.0,0.00014795,2]
[341935703,1731313841648,-500.0,0.00014795,2]
[341935705,1731313841660,-500.0,0.00014795,2]
[341935707,1731313841671,-500.0,0.00014795,2]
[341935710,1731313841682,-345.06802472,0.00014795,2]
[341935712,1731313841692,-500.0,0.00014795,2]
[341935714,1731313841704,-500.0,0.00014795,2]
[341935716,1731313841714,-202.44429404,0.00014795,2]
[341935718,1731313841724,-500.0,0.00014795,2]
[341935720,1731313841736,-500.0,0.00014795,2]
[341935723,1731313841747,-500.0,0.00014795,2]
[341935725,1731313841759,-500.0,0.00014795,2]
[341935727,1731313841782,-500.0,0.00014795,2]
[341935729,1731313841906,-500.0,0.00014795,2]
[341935731,1731313841918,-500.0,0.00014795,2]
[341935733,1731313841929,-331.08,0.00014795,2]
[341935735,1731313841940,-500.0,0.00014795,2]
[341935738,1731313841954,-500.0,0.00014795,2]
[341935740,1731313841966,-500.0,0.00014795,2]
[341935742,1731313841977,-500.0,0.00014795,2]
[341935744,1731313841990,-405.4,0.00014795,2]
[341935747,1731313842001,-2019.69883704,0.00014795,2]
[341935749,1731313842011,-500.0,0.00014795,2]
[341935751,1731313842023,-608.51012497,0.00014795,2]
[341935753,1731313842035,-500.0,0.00014795,2]
[341935755,1731313842045,-585.6409579,0.00014795,2]
[341935758,1731313842057,-500.0,0.00014795,2]
[341935760,1731313842068,-526.16964424,0.00014795,2]
[341935762,1731313842079,-500.0,0.00014795,2]
[341935764,1731313842090,-500.0,0.00014795,2]
[341935766,1731313842100,-500.0,0.00014795,2]
[341935769,1731313842114,-175.09977159,0.00014795,2]
[341935771,1731313842125,-500.0,0.00014795,2]
[341935773,1731313842136,-500.0,0.00014795,2]
[341935775,1731313842148,-453.43432531,0.00014795,2]
[341935778,1731313842161,-500.0,0.00014795,2]
[341935780,1731313842173,-500.0,0.00014795,2]
[341935782,1731313842185,-516.99767184,0.00014795,2]
[341935784,1731313842196,-525.37297783,0.00014795,2]
[341935787,1731313842212,-500.0,0.00014795,2]
[341935789,1731313842222,-336.47924292,0.00014795,2]
[341935791,1731313842233,-500.0,0.00014795,2]
[341935793,1731313842245,-500.0,0.00014795,2]
[341935795,1731313842255,-500.0,0.00014795,2]
[341935797,1731313842267,-500.0,0.00014795,2]
[341935799,1731313842279,-343.63,0.00014795,2]
[341935802,1731313842292,-500.0,0.00014795,2]
[341935804,1731313842302,-500.0,0.00014795,2]
[341935806,1731313842312,-500.0,0.00014795,2]
[341935808,1731313842322,-500.0,0.00014795,2]
[341935810,1731313842332,-516.73482108,0.00014795,2]
[341935812,1731313842342,-500.0,0.00014795,2]
[341935814,1731313842352,-500.0,0.00014795,2]
[341935816,1731313842363,-500.0,0.00014795,2]
[341935818,1731313842375,-500.0,0.00014795,2]
[341935820,1731313842386,-501.60543681,0.00014795,2]
[341935823,1731313842396,-500.0,0.00014795,2]
[341935824,1731313842406,-500.0,0.00014795,2]
[341935827,1731313842416,-208.354781,0.00014795,2]
[341935829,1731313842426,-500.0,0.00014795,2]
[341935831,1731313842438,-500.0,0.00014795,2]
[341935833,1731313842448,-500.0,0.00014795,2]
[341935835,1731313842460,-483.13,0.00014795,2]
[341935837,1731313842471,-500.0,0.00014795,2]
[341935839,1731313842482,-528.82999559,0.00014795,2]
[341935842,1731313842492,-500.0,0.00014795,2]
[341935844,1731313842503,-591.45494609,0.00014795,2]
[341935846,1731313842514,-500.0,0.00014795,2]
[341935848,1731313842524,-507.80754965,0.00014795,2]
[341935850,1731313842534,-535.54236232,0.00014795,2]
[341935852,1731313842545,-500.0,0.00014795,2]
[341935855,1731313842557,-500.0,0.00014795,2]
[341935857,1731313842568,-500.0,0.00014795,2]
[341935859,1731313842579,-210.70625653,0.00014795,2]
[341935861,1731313842590,-500.0,0.00014795,2]
[341935863,1731313842601,-500.0,0.00014795,2]
[341935865,1731313842611,-157.950213,0.00014795,2]
[341935867,1731313842622,-500.0,0.00014795,2]
[341935870,1731313842633,-582.7194534,0.00014795,2]
[341935872,1731313842643,-500.0,0.00014795,2]
[341935874,1731313842654,-209.56846,0.00014795,2]
[341935876,1731313842664,-500.0,0.00014795,2]
[341935878,1731313842675,-153.1758,0.00014795,2]
[341935880,1731313842686,-500.0,0.00014795,2]
[341935882,1731313842697,-500.0,0.00014795,2]
[341935884,1731313842710,-500.0,0.00014795,2]
[341935887,1731313842721,-215.05103548,0.00014795,2]
[341935889,1731313842732,-500.0,0.00014795,2]
[341935891,1731313842743,-500.0,0.00014795,2]
[341935892,1731313842754,-501.75686624,0.00014795,2]
[341935893,1731313842765,-500.0,0.00014795,2]
[341935894,1731313842785,-500.0,0.00014795,2]
[341935895,1731313842796,-500.0,0.00014795,2]
[341935896,1731313842806,-500.0,0.00014795,2]
[341935897,1731313842816,-500.0,0.00014795,2]
[341935898,1731313842827,-500.0,0.00014795,2]
[341935899,1731313842837,-500.0,0.00014795,2]
[341935900,1731313842847,-500.0,0.00014795,2]
[341935901,1731313842858,-150.496931,0.00014795,2]
[341935902,1731313842869,-1000.0,0.00014795,2]
[341935903,1731313842879,-500.0,0.00014795,2]
[341935904,1731313842890,-500.0,0.00014795,2]
[341935905,1731313842901,-500.0,0.00014795,2]
[341935906,1731313842912,-519.72154716,0.00014795,2]
[341935907,1731313842923,-500.0,0.00014795,2]
[341935908,1731313842934,-500.0,0.00014795,2]
[341935910,1731313842944,-500.0,0.00014795,2]
[341935914,1731313842956,-500.0,0.00014795,2]
[341935915,1731313842966,-500.0,0.00014795,2]
[341935916,1731313842976,-500.0,0.00014795,2]
[341935917,1731313842987,-500.0,0.00014795,2]
[341935918,1731313842998,-639.99086208,0.00014795,2]
[341935919,1731313843008,-591.13892842,0.00014795,2]
[341935920,1731313843018,-500.0,0.00014795,2]
[341935921,1731313843028,-500.0,0.00014795,2]
[341935922,1731313843038,-500.0,0.00014795,2]
[341935923,1731313843048,-500.0,0.00014795,2]
[341935924,1731313843059,-500.0,0.00014795,2]
[341935926,1731313843069,-500.0,0.00014795,2]
[341935928,1731313843079,-500.0,0.00014795,2]
[341935929,1731313843090,-500.0,0.00014795,2]
[341935930,1731313843100,-500.0,0.00014795,2]
[341935931,1731313843111,-500.0,0.00014795,2]
[341935932,1731313843122,-500.0,0.00014795,2]
[341935933,1731313843132,-500.0,0.00014795,2]
[341935934,1731313843143,-500.0,0.00014795,2]